Cogmind - Beta 13 @@@ ROGUE MODE // 2024.04.08 @ 22:24:11 Player: gabr Result: Destroyed by Y-54 Guardian with Flak Gun Performance ------------- Evolutions (4) 2000 Regions Visited (6) 1200 Robots Destroyed (111) 555 Value Destroyed (2122) 2122 Prototype IDs (4) 80 Alien Tech Used (0) 0 Bonus (482) 482 TOTAL SCORE: 6439 Bonus ------- Entered DSFs 500 Friendly Fire -18 Cogmind --------- Core Integrity 0/850 Matter 255/300 Energy 100/100 System Corruption 15% Temperature Cool (18) Movement Core (100) Ox1 Location -6/Factory Parts ------- > --- POWER (2) -------- (None) > --- PROPULSION (6) --- (None) > --- UTILITY (3) ------ (None) > --- WEAPON (4) ------- Great Maul Spear > --- INVENTORY (5) ---- Improved Deuterium Engine Improved Terrain Scanner Launcher Loader System Shield Peak State ------------ > --- POWER ------------ Angular Momentum Engine Fusion Compressor > --- PROPULSION ------- Carbon-fiber Leg Carbon-fiber Leg Improved Carbon-fiber Leg Improved Carbon-fiber Leg Flexi-carbon Leg Armored Leg > --- UTILITY ---------- Large Storage Unit Kinecellerator Kinecellerator > --- WEAPON ----------- Magnetic Acceleration Cannon Great Maul Spear Spear > --- INVENTORY -------- Heavy Ion Engine Xenon Bombardment Thruster Advanced Heat Sink Medium Storage Unit Improved Terrain Scanner Improved Particle Charger Kinecellerator Improved Weapon Shielding Improved Light Armor Plating Improved Light Armor Plating Hardlight Generator Improved Shield Generator System Shield Improved Medium Laser Rocket Launcher [Rating: 63] Favorites ----------- Power Heavy Ion Engine Engine Heavy Ion Engine Power Core Light Nuclear Core Reactor Cold Fusion Reactor Propulsion Hover Unit Treads Light Treads Leg Aluminum Leg Wheel Wheel Hover Unit Hover Unit Flight Unit Cesium-ion Thruster Utility Large Storage Unit Device Sensor Array Storage Large Storage Unit Processor Targeting Computer Hackware Hacking Suite Protection Light Armor Plating Weapon Improved Medium Laser Energy Gun Improved Medium Laser Ballistic Gun Assault Rifle Ballistic Cannon Magnetic Acceleration Cannon Special Weapon Welding Torch Impact Weapon Great Maul Piercing Weapon Spear Build | -11 -10 -9 -8 -7 -7 -6 ------- Run | Yrd Mat Mat Mat Fac DSF Fac Slots Evolved 8 | . . 2 2 2 . 2 Power 1 | . . . . . . 1 Propulsion 4 | . . 1 1 2 . . Utility 1 | . . 1 . . . . Weapon 2 | . . . 1 . . 1 Parts Attached 148 | 7 14 47 34 . 8 38 Power 19 | 1 1 7 3 . . 7 Engine 13 | 1 . 7 2 . . 3 Core 5 | . 1 . 1 . . 3 Reactor 1 | . . . . . . 1 Propulsion 67 | 2 6 17 17 . 6 19 Treads 8 | . . 6 2 . . . Leg 19 | 2 1 4 . . . 12 Wheel 5 | . . . 5 . . . Hover 24 | . 5 7 5 . 6 1 Flight 11 | . . . 5 . . 6 Utility 30 | 2 3 11 7 . 2 5 Device 13 | 1 1 3 3 . 1 4 Storage 8 | 1 2 1 3 . 1 . Processor 3 | . . 2 1 . . . Hackware 1 | . . 1 . . . . Protection 5 | . . 4 . . . 1 Artifact . | . . . . . . . Weapon 32 | 2 4 12 7 . . 7 Energy Gun 20 | 1 2 8 7 . . 2 Energy Cannon . | . . . . . . . Ballistic Gun 7 | 1 1 4 . . . 1 Ballistic Cannon 1 | . . . . . . 1 Launcher . | . . . . . . . Special Weapon 1 | . 1 . . . . . Impact Weapon 1 | . . . . . . 1 Slashing Weapon . | . . . . . . . Piercing Weapon 2 | . . . . . . 2 Special Melee Weapon . | . . . . . . . Unidentified Prototypes 4 | . . 3 . . . 1 Corrupted Parts 2 | . . . . . . 2 System Corruption 12 | . . . . . . 12 Parts Lost 28 | . . 5 8 . . 15 Power 2 | . . 1 . . . 1 Propulsion 15 | . . 3 5 . . 7 Utility 6 | . . 1 1 . . 4 Weapon 5 | . . . 2 . . 3 Highest Loss Streak 9 | . . 2 8 . . 9 To Critical Strikes . | . . . . . . . Average Slot Usage (%) 95 | . 99 93 87 84 96 93 Engine 7 | . 7 10 7 7 7 5 Core 3 | . 6 . . . . 3 Treads 4 | . . 12 1 7 1 . Leg 13 | . 19 5 . . . 26 Wheel 1 | . . . 10 23 4 . Hover 10 | . 8 10 13 . 36 11 Device 12 | . 14 11 10 15 15 10 Storage 10 | . 14 11 9 7 7 5 Protection 3 | . . 7 3 . . 1 Energy Gun 14 | . 14 15 25 23 23 7 Ballistic Gun 7 | . 13 6 . . . 1 Piercing Weapon 1 | . . . . . . 9 Naked Turns . | . . . . . . . Heaviest Build 64 | 15 30 44 43 29 39 64 Greatest Support 102 | 20 20 66 46 36 54 102 Greatest Overweight (x) 8 | . 4 7 8 . 3 2 Average Overweight (x) . | . 1 1 . . . . Largest Inventory Capacity 15 | 8 15 15 15 10 15 15 Average Capacity 13 | 7 12 14 11 10 10 14 Most Carried 15 | 3 15 15 15 10 15 15 Average Carried 12 | 1 9 14 10 10 10 14 Final Capacity 15 | 8 15 15 10 10 15 5 Final Carried 15 | 3 15 14 10 10 15 5 Class Distribution -------------------- 63% | Mutant 22% | Scavenger-Mutant 5% | Scavenger-Skirmisher 3% | Skirmisher Dominant Class ---------------- Mutant | -10/Materials Scavenger-Mutant | -9/Materials Scavenger-Skirmisher | -8/Materials Scavenger-Skirmisher | -7/Factory Skirmisher | -7/DSF Mutant | -6/Factory Resources | -11 -10 -9 -8 -7 -7 -6 ----------- Run | Yrd Mat Mat Mat Fac DSF Fac Matter Collected 2265 | 276 493 672 321 . . 503 Remotely 140 | 140 . . . . . . Salvage Created 4020 | 74 816 1480 567 . 51 1032 Parts 255 | 5 51 118 33 . 1 47 Haulers Intercepted 8 | . 2 3 2 . . 1 Recyclers Shooed 6 | . 3 1 2 . . . Parts Field Recycled . | . . . . . . . Retrieved Matter . | . . . . . . . Parts Self-Destructed . | . . . . . . . Prevented . | . . . . . . . Kills | -11 -10 -9 -8 -7 -7 -6 ------- Run | Yrd Mat Mat Mat Fac DSF Fac Combat Hostiles Destroyed 49 | . 6 26 5 . 1 11 Melee 6 | . . . . . . 6 Guns 40 | . 6 26 5 . 1 2 Cannons 1 | . . . . . . 1 Classes Destroyed 15 | 1 7 2 1 . 1 3 Worker 17 | . 3 6 2 . . 6 Builder 11 | . 1 3 3 . . 4 Tunneler 2 | . . . 2 . . . Hauler 8 | . 2 3 2 . . 1 Recycler 11 | 1 4 2 3 . . 1 Mechanic 2 | . 1 . . . . 1 Operator 3 | . 1 1 . . . 1 Watcher 8 | . 3 5 . . . . Swarmer 14 | . . 10 3 . . 1 Grunt 21 | . 6 9 2 . . 4 Duelist 1 | . . . . . . 1 Sentry 9 | . . 7 . . . 2 Specialist 1 | . . . . . 1 . Hunter 1 | . . . . . . 1 Programmer 2 | . . . . . . 2 Best Kill Streak 8 | 1 3 8 4 . 1 4 Combat Bots Only 6 | . 2 6 3 . 1 4 Max Kills in Single Turn 2 | 1 2 1 2 . 1 1 Gunslinging 1 | . . . 1 . . . Exploded . | . . . . . . . Melee 1 | . . . . . . 1 Uniques/NPCs Destroyed . | . . . . . . . Combat | -11 -10 -9 -8 -7 -7 -6 -------- Run | Yrd Mat Mat Mat Fac DSF Fac Hostile Shots Fired 468 | . 17 134 69 . 25 223 Missed 148 | . 3 39 11 . 15 80 Damage Taken 4843 | . 209 1046 873 . 127 2588 Core 1403 | . 79 244 219 . 11 850 Absorbed by Shields 56 | . . 56 . . . . Regen/Repaired (Parts) 42 | . 42 . . . . . Core Remaining (%) 73 | 100 68 39 60 . 98 . Volleys Fired 255 | 2 89 102 41 . 4 17 Largest 4 | 2 2 2 3 . 3 4 Hottest 233 | 70 70 112 177 . 177 233 Shots Fired 534 | 4 164 203 102 . 12 49 Gun 521 | 4 156 203 102 . 12 44 Cannon 5 | . . . . . . 5 Launcher . | . . . . . . . Special 8 | . 8 . . . . . Kinetic 151 | 2 81 63 . . . 5 Thermal 383 | 2 83 140 102 . 12 44 Explosive . | . . . . . . . Electromagnetic . | . . . . . . . Robot Hit Streak 18 | 3 7 18 7 . 2 7 Robot Miss Streak 6 | 1 6 4 6 . 3 3 Penetration Max . | . . . . . . . Secondary Targets 5 | . 1 2 2 . . . Max Gunslinging Chain 1 | . 1 1 1 . . . Shots Hit Robots 350 | 3 76 133 51 . 4 83 Core Hits 151 | 2 38 58 22 . 2 29 Critical Kills 2 | . . 2 . . . . Critical Parts Destroyed 5 | . . . . . . 5 Critical Strikes 27 | . 1 10 5 . . 11 Burn 16 | . 1 8 5 . . 2 Destroy 2 | . . 2 . . . . Blast 1 | . . . . . . 1 Smash 5 | . . . . . . 5 Impale 3 | . . . . . . 3 Melee Attacks 62 | . . . . . . 62 Impact 20 | . . . . . . 20 Slashing . | . . . . . . . Piercing 42 | . . . . . . 42 Sneak Attacks 18 | . . . . . . 18 Combat Hostiles . | . . . . . . . Follow-up Attacks 11 | . . . . . . 11 Damage Inflicted 7002 | 37 1057 2057 877 . 66 2908 Guns 4563 | 37 1049 2057 871 . 66 483 Cannons 80 | . . . . . . 80 Explosions 8 | . 8 . . . . . Melee 2345 | . . . . . . 2345 Ramming 6 | . . . 6 . . . Kinetic 1374 | 11 599 684 . . . 80 Thermal 3269 | 26 450 1373 871 . 66 483 Explosive . | . . . . . . . Electromagnetic 8 | . 8 . . . . . Impact 962 | . . . . . . 962 Slashing . | . . . . . . . Piercing 1383 | . . . . . . 1383 Highest Corruption 15 | . 1 . . . . 15 Average Corruption 9 | . 1 . . . . 12 Corruption Purged . | . . . . . . . Corruption Blocked . | . . . . . . . Effects 32 | . 6 . . . . 26 Message Errors 8 | . . . . . . 8 Matter Fused 10 | . 4 . . . . 6 Heat Flow Errors 2 | . 1 . . . . 1 Energy Discharges 3 | . . . . . . 3 Parts Rejected 1 | . . . . . . 1 Data Loss (minor) 3 | . 1 . . . . 2 Data Loss (major) 2 | . . . . . . 2 Misfires 2 | . . . . . . 2 Alerts 1 | . . . . . . 1 Overload Shots . | . . . . . . . Overflow Damage 596 | . . . . . . 596 Projectiles . | . . . . . . . Explosions . | . . . . . . . Melee 596 | . . . . . . 596 Knockbacks 3 | . . . . . . 3 Impact 3 | . . . . . . 3 Kinetic . | . . . . . . . Secondary . | . . . . . . . Self-Inflicted Damage 39 | . 36 . 3 . . . Shots 1 | . 1 . . . . . Rammed 4 | . . . 4 . . . Targets Rammed 4 | . . . 4 . . . Kicked . | . . . . . . . Crushed . | . . . . . . . Highest Temperature 1040 | 18 162 578 597 . 27 1040 Average Temperature 121 | 10 20 110 152 . 12 310 Received Heat Transfer 1270 | . 99 253 486 . . 432 Effects 44 | . . 12 11 . . 21 Shutdowns 7 | . . 3 . . . 4 Energy Bleed 10 | . . 6 2 . . 2 Interference 1 | . . . 1 . . . Matter Decay 2 | . . . . . . 2 Short Circuit 5 | . . . 2 . . 3 Damage (minor) 5 | . . 1 1 . . 3 Damage (major) 10 | . . 1 5 . . 4 Damage (core) 4 | . . 1 . . . 3 Siege Activations . | . . . . . . . Robots Corrupted . | . . . . . . . Combat Hostiles . | . . . . . . . Parts Fried 4 | . . . . . . 4 Impact Corruptions 18 | . . . . . . 18 Robots Melted 1 | . . . . . . 1 Combat Hostiles 1 | . . . . . . 1 Parts Melted 17 | . 3 6 3 . . 5 Heat Transferred 8792 | 74 1170 3811 2368 . 148 1221 Parts Sabotaged . | . . . . . . . Parts Stolen . | . . . . . . . Parts Stripped . | . . . . . . . Power Chain Reactions . | . . . . . . . Alert | -11 -10 -9 -8 -7 -7 -6 ------- Run | Yrd Mat Mat Mat Fac DSF Fac Peak Influence 396 | 5 125 396 153 74 86 190 Initial 76 | . 3 33 76 69 51 44 Average 106 | 2 43 204 39 69 57 85 Maximum Alert Level 1 | . . 1 . . . . Low Security (%) 85 | 100 100 60 100 100 100 100 Level 1 14 | . . 39 . . . . Level 2 . | . . . . . . . Level 3 . | . . . . . . . Level 4 . | . . . . . . . Level 5 . | . . . . . . . High Security . | . . . . . . . Max Security . | . . . . . . . Squads Dispatched 9 | . 2 2 1 . 1 3 Investigation 1 | . . 1 . . . . Extermination 2 | . . . . . . 2 Reinforcement 6 | . 2 1 1 . 1 1 Assault . | . . . . . . . Garrison . | . . . . . . . Intercept . | . . . . . . . Searches Triggered . | . . . . . . . Construction Impeded . | . . . . . . . Haulers Reinforced . | . . . . . . . Active Scanning Responses . | . . . . . . . Cargo Convoy Interrupts . | . . . . . . . Stealth | -11 -10 -9 -8 -7 -7 -6 --------- Run | Yrd Mat Mat Mat Fac DSF Fac Distress Signals 10 | . 3 4 . . . 3 Communications Jammed . | . . . . . . . Distress Signals . | . . . . . . . Times Spotted 105 | . 33 43 10 . 4 15 Peak Tracking Total 6 | . 4 6 3 . 2 4 Tactical Retreats 9 | . 1 4 3 . 1 . Traps | -11 -10 -9 -8 -7 -7 -6 ------- Run | Yrd Mat Mat Mat Fac DSF Fac Traps Triggered 6 | . . 2 1 . . 3 Indirectly . | . . . . . . . Trap Hack Attempts . | . . . . . . . Triggered . | . . . . . . . Disarmed . | . . . . . . . Reprogrammed . | . . . . . . . Reused . | . . . . . . . Traps Extracted . | . . . . . . . Installed . | . . . . . . . Triggered . | . . . . . . . Machines | -11 -10 -9 -8 -7 -7 -6 ---------- Run | Yrd Mat Mat Mat Fac DSF Fac Machines Disabled 3 | . 1 1 1 . . . Max in Single Turn 1 | . 1 1 1 . . . Machines Repaired . | . . . . . . . Machines Dismantled . | . . . . . . . Machines Sabotaged . | . . . . . . . Overloaded Fab Kills . | . . . . . . . Hacking | -11 -10 -9 -8 -7 -7 -6 --------- Run | Yrd Mat Mat Mat Fac DSF Fac Machines Accessed 12 | . 3 5 2 1 . 1 Terminals 8 | . 1 4 2 1 . . Fabricators . | . . . . . . . Repair Stations 2 | . 1 . . . . 1 Recycling Units 2 | . 1 1 . . . . Scanalyzers . | . . . . . . . Garrison Access . | . . . . . . . Total Hacks 23 | . 8 10 2 2 . 1 Successful 14 | . 6 5 2 1 . . Failed 9 | . 2 5 . 1 . 1 Catastrophic 2 | . . 2 . . . . Database Lockouts . | . . . . . . . Manual 4 | . 1 3 . . . . Terminals 14 | . 2 8 2 2 . . Fabricators . | . . . . . . . Repair Stations 5 | . 4 . . . . 1 Recycling Units 4 | . 2 2 . . . . Scanalyzers . | . . . . . . . Garrison Access . | . . . . . . . Terminal Hacks 9 | . 2 4 2 1 . . Record 2 | . 1 1 . . . . Open DSF 1 | . . . . 1 . . Alert Level 2 | . . 2 . . . . Unreport Threat 2 | . . 1 1 . . . Locate Traps 1 | . . . 1 . . . Hauler Manifests 1 | . 1 . . . . . Fabricator Hacks . | . . . . . . . Repair Station Hacks 4 | . 4 . . . . . Scan Component 2 | . 2 . . . . . Repair 2 | . 2 . . . . . Recycling Unit Hacks 1 | . . 1 . . . . Report Inventory 1 | . . 1 . . . . Scanalyzer . | . . . . . . . Garrison Access Hacks . | . . . . . . . Unauthorized Hacks . | . . . . . . . Terminals . | . . . . . . . Fabricators . | . . . . . . . Repair Stations . | . . . . . . . Recycling Units . | . . . . . . . Scanalyzers . | . . . . . . . Garrison Access . | . . . . . . . Data Cores Recovered 1 | . . 1 . . . . Used . | . . . . . . . Hacking Detections 8 | . 2 4 . 1 . 1 Full Trace Events 2 | . 1 1 . . . . Feedback Events . | . . . . . . . Feedback Blocked . | . . . . . . . Robot Schematics Acquired . | . . . . . . . Robots Built . | . . . . . . . Authchips . | . . . . . . . Time . | . . . . . . . Total Robot Build Rating . | . . . . . . . Part Schematics Acquired . | . . . . . . . Parts Built . | . . . . . . . Authchips . | . . . . . . . Time . | . . . . . . . Total Part Build Rating . | . . . . . . . Parts Repaired 2 | . 2 . . . . . Time 52 | . 52 . . . . . Parts Recycled . | . . . . . . . Recycled Matter . | . . . . . . . Retrieved Matter . | . . . . . . . Retrieved Components . | . . . . . . . Parts Scanalyzed . | . . . . . . . Part Schematics Acquired . | . . . . . . . Parts Damaged . | . . . . . . . Bothacking | -11 -10 -9 -8 -7 -7 -6 ------------ Run | Yrd Mat Mat Mat Fac DSF Fac Used RIF Installer . | . . . . . . . Robots Hacked . | . . . . . . . Non-combat . | . . . . . . . Combat . | . . . . . . . Robot Hacks Applied . | . . . . . . . Relay Couplers Released . | . . . . . . . Fabnet Peak Effective % . | . . . . . . . Robots Rewired . | . . . . . . . Allies Hacked . | . . . . . . . Hacks Repelled . | . . . . . . . Allies | -11 -10 -9 -8 -7 -7 -6 -------- Run | Yrd Mat Mat Mat Fac DSF Fac Total Allies . | . . . . . . . Largest Group . | . . . . . . . Highest-Rated Group . | . . . . . . . Highest-Rated Ally . | . . . . . . . Total Orders 1 | . . . . . . 1 EXPLORE 1 | . . . . . . 1 Ally Attacks . | . . . . . . . Total Damage . | . . . . . . . Kills . | . . . . . . . Allies Corrupted . | . . . . . . . Allies Melted . | . . . . . . . Intel | -11 -10 -9 -8 -7 -7 -6 ------- Run | Yrd Mat Mat Mat Fac DSF Fac Robot Analysis Total . | . . . . . . . Derelict Logs Recovered . | . . . . . . . Drone Launches 18 | . . . . . . 18 Drone Recoveries 2 | . . . . . . 2 Exploration | -11 -10 -9 -8 -7 -7 -6 ------------- Run | Yrd Mat Mat Mat Fac DSF Fac Turns Passed 6055 | 80 1980 2125 662 6 101 1101 Spaces Moved 2867 | 52 693 937 431 7 102 645 Core 10 | 2 . . 8 . . . Treads 438 | . . 436 2 . . . Legs 953 | 50 435 113 . . . 355 Wheels 245 | . . . 233 7 5 . Hover 1186 | . 258 388 164 . 97 279 Flight 35 | . . . 24 . . 11 Fastest Speed 26 | 50 120 52 26 86 40 31 Average Speed 137 | 117 161 178 103 86 54 91 Slowest Speed 675 | 120 310 480 675 86 275 260 Overloaded Moves . | . . . . . . . Propulsion Burnouts . | . . . . . . . Robots Hopped . | . . . . . . . Cave-ins Triggered . | . . . . . . . Exploration Rate (%) 28 | 5 45 44 22 1 55 28 Regions Visited 6 Branch Regions . Pre-discovered Areas . | . . . . . . . Known Exits Taken 2 | . . 1 . 1 . . Unknown Exits Taken 3 | 1 1 . 1 . . . Scrap Searched . | . . . . . . . Spaces Dug . | . . . . . . . Terrain Destroyed 1 | . . . . . . 1 Melee . | . . . . . . . Projectile 1 | . . . . . . 1 AOE . | . . . . . . . Terrain Rammed . | . . . . . . . Walls Destroyed . | . . . . . . . Machines Disabled . | . . . . . . . Actions | -11 -10 -9 -8 -7 -7 -6 --------- Run | Yrd Mat Mat Mat Fac DSF Fac Total 4423 | 63 1393 1213 562 6 138 1048 Wait 869 | . 566 35 21 . 11 236 Move 2861 | 51 692 936 430 6 101 645 Hop . | . . . . . . . Pick Up 77 | 3 16 34 3 . 7 14 Fast Attach 92 | 7 3 28 24 . 6 24 Attach 17 | . 1 5 5 . . 6 Detach 18 | . 3 5 6 . . 4 Swap 39 | . 10 14 5 . 2 8 Drop 135 | . 13 54 23 . 7 38 Fire 255 | 2 89 102 41 . 4 17 Melee 46 | . . . . . . 46 Ram 4 | . . . 4 . . . Kick . | . . . . . . . Crush . | . . . . . . . Escape Stasis 2 | . . . . . . 2 Rewire . | . . . . . . . Trap . | . . . . . . . Miscellaneous 8 | . . . . . . 8 Route ------- -11/Scrapyard -10/Materials -9/Materials -8/Materials -7/Factory -7/DSF -6/Factory History --------- Turn | Location | Event 26 | -11/Scrapyard | Discovered new exit (range 15) 81 | -11/Scrapyard | Entered Materials 308 | -10/Materials | Build established: Mutant 1014 | -10/Materials | Discovered new exit (range 13) 1870 | -10/Materials | Repaired Hover Unit 1898 | -10/Materials | Repaired Hover Unit 2061 | -10/Materials | Entered another Materials area 2061 | -9/Materials | Evolved 2 slots: Propulsion x1, Utility x1 2613 | -9/Materials | Build established: Scavenger-Mutant 3327 | -9/Materials | Discovered new exit (range 13) 3379 | -9/Materials | Core integrity fell below 50% 3752 | -9/Materials | Build established: Mutant 4181 | -9/Materials | Identified exit to Materials 4186 | -9/Materials | Entered another Materials area 4186 | -8/Materials | Evolved 2 slots: Propulsion x1, Weapon x1 4315 | -8/Materials | Discovered new exit (range 3) 4473 | -8/Materials | Lost 8 parts (5n1u2w) 4848 | -8/Materials | Entered Factory 4848 | -7/Factory | Evolved 2 slots: Propulsion x2 4853 | -7/Factory | Identified exit to DSF 4854 | -7/Factory | Entered DSF 4889 | -7/DSF | Additional patrols routed to DSF 4932 | -7/DSF | Discovered new exit (range 15) 4955 | -7/DSF | Entered Factory 4955 | -6/Factory | Evolved 2 slots: Power x1, Weapon x1 5183 | -6/Factory | Core integrity fell below 50% 5236 | -6/Factory | Lost 5 parts (2n1u2w) 5420 | -6/Factory | System corruption reached 10% 5949 | -6/Factory | Found Launcher Loader 6000 | -6/Factory | Spotted B-75 Beast 6047 | -6/Factory | Core integrity fell below 20% 6056 | -6/Factory | Destroyed by Y-54 Guardian with Flak Gun Last Messages --------------- 06037_ B-75 Beast suffers critical hit (Smash). 06037_ Destroyed Imp. Cooling System. 06037_ B-75 Beast system corrupted by crushing effect. 06037_ K-01 Serf collects debris. 06039_ System corrupted: Matter fused (-7). 06039_ Knocked back. 06039_ K-01 Serf collects debris. 06040_ Spear follow-up attack on B-75 Beast. 06040_ B-75 Beast suffers critical hit (Impale). 06042_ K-01 Serf collects debris. 06043_ Nuclear Pulse Thruster destroyed. 06043_ Knocked back. 06044_ K-01 Serf collects debris. 06047_ Spear follow-up attack on B-75 Beast. 06048_ K-01 Serf collects debris. 06052_ U-05 Engineer builds a Wall. 06053_ Nuclear Pulse Thruster destroyed. 06053_ Spear destroyed. 06053_ R-10 Processor collects Flexi-carbon Leg. 06056_ Knocked back. Map ----- +----------------------------------------------------+ | ?????????????????????????????????????????????????? | | ?????????????????????????????????????????????????? | | ?????????????????????????????????????????????????? | | ?????????????????????????????????????????????????? | | ?????????????????????????????????????????????????? | | ?????????????????????????????????????????????????? | | ?????????????????????????????????????????????????? | | ?????????????????????????????????????????????????? | | ?????????????????????????????????????????????????? | | ?????????????????????????????????????????????????? | | ????????????????????? ?????????????????????????? | | ??????????????????? ^ ?????????????????????????? | | ??????????????????? ?????????????????????????? | | ???????????????????# ?????????????????????????? | | ???????????????????# ????????????????????????? | | ???????????????????# ????????????????????????? | | ???????????????????# ????????????????????????? | | ???????????????????# ????????????????????????? | | ???????????????????# #???????????????????????? | | ???????????????????# ####????????????????????? | | ???????????????????# # #????????????????????? | | ???????????????????# # #####????????????????? | | ???????????????????# BB #????????????????? | | ???????????????????# BB % #????????????????? | | ???????????????????# "" % #????????????????? | | ???????????????????# " T@ %= #????????????????? | | ???????????????????# % #????????????????? | | ???????????????????# k #????????????????? | | ???????????????????# Y #????????????????? | | ???????????????????# ""%% =*! #????????????????? | | ??????????????????# """ =[]! # ???????????????? | | ??????????????????#k """ ==!!u# ?????????????? | | ??????????????????# """R ]k!!*u ????????????? | | ??????????????????+ % != # ???????????? | | ????????????????? #w % = # ???????????? | | ???????????????? ?# ################## | | ???????????????#??# ^ | | ??????????????????# | | ???????????????? [[ | | ??????????????? [[ | | ?????????????? A | | ???????????????#### ############ | | ??????????????????######## #??????????# | | ?????????????????????????####/####??????????/ | | ??????????????????????????? ? ?? ??????????# | | ???????????????????????????!? ?? ??????????# | | ??????????????????????????? ? ??? ?????????# | | ?????????????????????????????????????????####+##+# | | ?????????????????????????????????????????# | | ?????????????????????????????????????????# | +----------------------------------------------------+ Best States ------------- Heat Dissipation 51 Coolant Potential 50 Energy Generation 27 Energy Capacity 480 Matter Stores 300 Matter Capacity 300 Sight Range 16 Robot Scan Range 14 Terrain Scan Range 16 Terrain Scan Density 10 Armor Coverage 150 Evasion (%) 63 Targeting Accuracy 5 Recoil Reduction 3 Kinecelleration 30 Offensive Hacking 10 Item Schematics ----------------- None Robot Schematics ------------------ None Fabricated ------------ Nothing Alien Tech Used ----------------- None Achievements -------------- None Challenges ------------ None Game ------ Seed TransmissionDecoyPlatform Manual? 0 Play Time 00:59:53 Cumulative 71.7 hours Start 2024.04.08 @ 20:27:59 End 2024.04.08 @ 22:24:11 Sessions 1 Manual Loads 0 Difficulty Rogue Special Mode None Game No. 156 Rogue 156 Adventurer 0 Explorer 0 Win Type - Total 0 Types 0/0/0/0/0/0/0/0/0 Lore% 28 Gallery% 42 Achievement% 31 Wizard Run 0 Options --------- Layout 0 ASCII 0 Keyboard 1 Movement Numpad Keybinds 0 Fullscreen 1 Font 24/Terminus Map View 76x50 Zoom Use 0% Tactical HUD 1 Map Filters NONE Filters NONE Steam 1 RUN: 8ffe4411-38d1-4f1d-aece-127a51b243a3